Cogmind - Beta 15 @@@ ROGUE MODE // 2025.08.31 @ 01:42:59 Player: Culibread Result: Self-destructed Performance ------------- Evolutions (2) 1000 Regions Visited (3) 600 Robots Destroyed (10) 50 Value Destroyed (317) 317 Prototype IDs (1) 20 Alien Tech Used (0) 0 Bonus (0) 0 TOTAL SCORE: 1987 Bonus ------- None Cogmind --------- Core Integrity 484/550 Matter 205/300 Energy 138/315 System Corruption 0% Temperature Warm (189) Movement Rolling (110) Location -8/Materials Parts ------- > --- POWER (1) -------- Neutrino Core > --- PROPULSION (3) --- Subdweller Monowheel Subdweller Monowheel Subdweller Monowheel > --- UTILITY (4) ------ Medium Storage Unit Particle Charger > --- WEAPON (3) ------- Improved EM Shotgun Subdweller Beam Cannon Subdweller Machine Gun > --- INVENTORY (10) --- Ion Engine Light Angular Momentum Engine Makeshift Leg Scrap Shield Subdweller Laser Subdweller Laser Field Laser Subdweller Shrapnel Launcher Peak State ------------ > --- POWER ------------ Neutrino Core > --- PROPULSION ------- Subdweller Monowheel Subdweller Monowheel Subdweller Monowheel > --- UTILITY ---------- Medium Storage Unit Advanced Weight Redist. System Subdweller Optics Particle Charger > --- WEAPON ----------- Improved EM Shotgun Subdweller Laser Subdweller Beam Cannon > --- INVENTORY -------- Ion Engine Light Angular Momentum Engine Makeshift Leg Scrap Shield Subdweller Laser Field Laser Subdweller Machine Gun Subdweller Shrapnel Launcher [Rating: 30] Favorites ----------- Power Subdweller Power Source Engine Subdweller Power Source Power Core Neutrino Core Propulsion Aluminum Leg Leg Aluminum Leg Wheel Subdweller Monowheel Utility Medium Storage Unit Device Subdweller Optics Storage Medium Storage Unit Protection Scrap Shield Weapon Subdweller Laser Energy Gun Subdweller Laser Energy Cannon Subdweller Beam Cannon Ballistic Gun Subdweller Machine Gun Launcher Subdweller Shrapnel Launcher Build | -11 -10 -10 -8 ------- Run | Yrd Mat Sub Mat Slots Evolved 4 | . . . 4 Power . | . . . . Propulsion 1 | . . . 1 Utility 2 | . . . 2 Weapon 1 | . . . 1 Parts Attached 28 | 6 1 15 6 Power 3 | 1 . 2 . Engine 2 | 1 . 1 . Core 1 | . . 1 . Reactor . | . . . . Propulsion 8 | 2 . 5 1 Treads . | . . . . Leg 3 | 2 . 1 . Wheel 5 | . . 4 1 Hover . | . . . . Flight . | . . . . Utility 7 | 1 1 3 2 Device 4 | . . 2 2 Storage 2 | 1 1 . . Processor . | . . . . Hackware . | . . . . Protection 1 | . . 1 . Artifact . | . . . . Weapon 10 | 2 . 5 3 Energy Gun 6 | 2 . 2 2 Energy Cannon 1 | . . . 1 Ballistic Gun 2 | . . 2 . Ballistic Cannon . | . . . . Launcher 1 | . . 1 . Special Weapon . | . . . . Impact Weapon . | . . . . Slashing Weapon . | . . . . Piercing Weapon . | . . . . Special Melee Weapon . | . . . . Unidentified Prototypes 1 | . . . 1 Parts Lost 4 | . . 4 . Power . | . . . . Propulsion 2 | . . 2 . Utility . | . . . . Weapon 2 | . . 2 . Highest Loss Streak 3 | . . 3 . To Critical Strikes 1 | . . 1 . Average Backups 5 | . 1 6 7 Power 1 | . 1 1 2 Propulsion 1 | . . 1 1 Utility 1 | . . 1 1 Weapon 1 | . . 1 3 Tool/Special . | . . . . Unused Backups 4 | . . 2 2 Power 2 | . . . 2 Propulsion 1 | . . 1 . Utility 1 | . . 1 . Weapon . | . . . . Tool/Special . | . . . . Average Slot Usage (%) 89 | . 85 89 91 Engine 12 | . 14 13 . Core 1 | . . . 9 Leg 22 | . 28 24 . Wheel 4 | . . 3 27 Device 5 | . . 5 19 Storage 11 | . 14 11 9 Protection 2 | . . 2 . Energy Gun 23 | . 28 24 16 Ballistic Gun 2 | . . 3 1 Peak Build Rating 30 | 6 6 19 30 Average Rating 12 | 4 6 12 27 On Entrance 7 | . 6 6 19 Naked Turns . | . . . . Heaviest Build 44 | 14 19 34 44 Greatest Support 69 | 20 20 40 69 Greatest Overweight (x) 2 | 1 . 2 . Average Overweight (x) . | . . . . Largest Inventory Capacity 10 | 8 10 10 10 Average Capacity 8 | 6 9 8 10 Most Carried 10 | 3 3 10 10 Average Carried 6 | . 1 7 8 Final Capacity 10 | 8 10 10 10 Final Carried 9 | 1 2 9 9 Class Distribution -------------------- 62% | Mutant 30% | Scavenger-Mutant 5% | Scavenger-Skirmisher Dominant Class ---------------- Mutant | -10/Materials Mutant | -10/Subcaves Scavenger-Skirmisher | -8/Materials Resources | -11 -10 -10 -8 ----------- Run | Yrd Mat Sub Mat Matter Collected 445 | 208 . 217 20 Remotely . | . . . . Salvage Created 320 | . . 280 40 Parts 32 | . . 27 5 Haulers Intercepted . | . . . . Recyclers Shooed . | . . . . Parts Field Recycled . | . . . . Retrieved Matter . | . . . . Parts Self-Destructed 7 | . . 7 . Prevented . | . . . . Kills | -11 -10 -10 -8 ------- Run | Yrd Mat Sub Mat Combat Hostiles Destroyed 10 | . . 7 3 Guns 10 | . . 7 3 Classes Destroyed 3 | . . 2 1 Swarmer 3 | . . . 3 Grunt 1 | . . 1 . Subdweller 6 | . . 6 . Best Kill Streak 3 | . . 1 3 Combat Bots Only 3 | . . 1 3 Max Kills in Single Turn 1 | . . 1 1 Gunslinging . | . . . . Exploded . | . . . . Melee . | . . . . Uniques/NPCs Destroyed . | . . . . Combat | -11 -10 -10 -8 -------- Run | Yrd Mat Sub Mat Hostile Shots Fired 69 | . . 43 26 Missed 18 | . . 13 5 Hits 51 | . . 30 21 Projectile 51 | . . 30 21 AOE 2 | . . 2 . Critical Strikes 2 | . . 2 . Damage Taken 969 | . . 764 205 Core 265 | . . 199 66 Absorbed by Shields . | . . . . Core Remaining (%) 60 | 100 . 20 . Volleys Fired 43 | . . 31 12 Largest 3 | . . 2 3 Hottest 203 | . . 120 203 Shots Fired 80 | . . 57 23 Gun 73 | . . 56 17 Cannon 6 | . . . 6 Launcher 1 | . . 1 . Special . | . . . . Kinetic 6 | . . 1 5 Thermal 38 | . . 24 14 Explosive . | . . . . Electromagnetic 36 | . . 32 4 Robot Hit Streak 12 | . . 12 5 Robot Miss Streak 5 | . . 5 4 Penetration Max . | . . . . Secondary Targets . | . . . . Shots Hit Robots 40 | . . 29 11 Core Hits 18 | . . 14 4 Critical Kills . | . . . . Critical Parts Destroyed . | . . . . Critical Strikes . | . . . . Melee Attacks . | . . . . Impact . | . . . . Slashing . | . . . . Piercing . | . . . . Sneak Attacks . | . . . . Combat Hostiles . | . . . . Follow-up Attacks . | . . . . Damage Inflicted 739 | . . 470 269 Guns 644 | . . 442 202 Cannons 29 | . . . 29 Explosions 66 | . . 28 38 Melee . | . . . . Ramming . | . . . . Kinetic 74 | . . 28 46 Thermal 465 | . . 295 170 Explosive . | . . . . Electromagnetic 200 | . . 147 53 Impact . | . . . . Slashing . | . . . . Piercing . | . . . . Highest Corruption . | . . . . Average Corruption . | . . . . Corruption Purged . | . . . . Corruption Blocked . | . . . . Overload Shots . | . . . . Overflow Damage 18 | . . . 18 Projectiles . | . . . . Explosions 18 | . . . 18 Melee . | . . . . Knockbacks . | . . . . Impact . | . . . . Kinetic . | . . . . Secondary . | . . . . Self-Inflicted Damage 40 | . . 8 32 Shots 2 | . . 1 1 Rammed . | . . . . Targets Rammed . | . . . . Kicked . | . . . . Crushed . | . . . . Highest Temperature 497 | . . 81 497 Average Temperature 172 | . . 26 244 Received Heat Transfer 108 | . . 99 9 Effects 3 | . . . 3 Shutdowns 2 | . . . 2 Short Circuit 1 | . . . 1 Siege Activations . | . . . . Martial Activations . | . . . . Shielding Activations . | . . . . Robots Disrupted . | . . . . Combat Hostiles . | . . . . Robots Corrupted . | . . . . Combat Hostiles . | . . . . Parts Fried . | . . . . Impact Corruptions . | . . . . Robots Melted . | . . . . Combat Hostiles . | . . . . Parts Melted . | . . . . Heat Transferred 586 | . . 350 236 Parts Sabotaged . | . . . . Parts Stolen . | . . . . Parts Stripped . | . . . . Power Chain Reactions 1 | . . . 1 Alert | -11 -10 -10 -8 ------- Run | Yrd Mat Sub Mat Maximum Alert Level . | . . . . Low Security (%) 100 | 100 100 . 100 Level 1 . | . . . . Level 2 . | . . . . Level 3 . | . . . . Level 4 . | . . . . Level 5 . | . . . . High Security . | . . . . Max Security . | . . . . Peak Influence 64 | . . . 64 Initial . | . . . . Average 3 | . . . 10 Influence Increases 105 | . . 30 75 Destroy 0b10 Robot/C 80 | . . 20 60 Destroy Leader 20 | . . 10 10 Destroy Structure 5 | . . . 5 Influence Decreases 51 | . . 30 21 Time Decay 51 | . . 30 21 Squads Dispatched 1 | . . . 1 Investigation . | . . . . Extermination . | . . . . Reinforcement 1 | . . . 1 Assault . | . . . . Garrison . | . . . . Intercept . | . . . . Searches Triggered . | . . . . Construction Impeded . | . . . . Haulers Reinforced . | . . . . Active Scanning Responses . | . . . . Cargo Convoy Interrupts . | . . . . Stealth | -11 -10 -10 -8 --------- Run | Yrd Mat Sub Mat Distress Signals . | . . . . Communications Jammed . | . . . . Distress Signals . | . . . . Times Spotted 28 | . 1 22 5 Peak Tracking Total 6 | . 1 6 3 Tactical Retreats . | . . . . Traps | -11 -10 -10 -8 ------- Run | Yrd Mat Sub Mat Traps Triggered . | . . . . Indirectly . | . . . . Trap Hack Attempts . | . . . . Triggered . | . . . . Disarmed . | . . . . Reprogrammed . | . . . . Reused . | . . . . Traps Extracted . | . . . . Installed . | . . . . Triggered . | . . . . Machines | -11 -10 -10 -8 ---------- Run | Yrd Mat Sub Mat Machines Disabled . | . . . . Max in Single Turn . | . . . . Machines Repaired . | . . . . Machines Dismantled . | . . . . Machines Sabotaged . | . . . . Overloaded Fab Kills . | . . . . Hacking | -11 -10 -10 -8 --------- Run | Yrd Mat Sub Mat Machines Accessed 1 | . . 1 . Terminals . | . . . . Fabricators . | . . . . Repair Stations . | . . . . Recycling Units . | . . . . Scanalyzers . | . . . . Garrison Access . | . . . . Total Hacks 4 | . . 4 . Successful 4 | . . 4 . Failed . | . . . . Catastrophic . | . . . . Database Lockouts . | . . . . Manual . | . . . . Terminals . | . . . . Fabricators . | . . . . Repair Stations . | . . . . Recycling Units . | . . . . Scanalyzers . | . . . . Garrison Access . | . . . . Terminal Hacks 4 | . . 4 . Record 4 | . . 4 . Fabricator Hacks . | . . . . Repair Station Hacks . | . . . . Recycling Unit Hacks . | . . . . Scanalyzer . | . . . . Garrison Access Hacks . | . . . . Unauthorized Hacks . | . . . . Terminals . | . . . . Fabricators . | . . . . Repair Stations . | . . . . Recycling Units . | . . . . Scanalyzers . | . . . . Garrison Access . | . . . . Data Cores Recovered . | . . . . Used . | . . . . Hacking Detections . | . . . . Full Trace Events . | . . . . Feedback Events . | . . . . Feedback Blocked . | . . . . Robot Schematics Acquired . | . . . . Robots Built . | . . . . Authchips . | . . . . Time . | . . . . Total Robot Build Rating . | . . . . Part Schematics Acquired . | . . . . Parts Built . | . . . . Authchips . | . . . . Time . | . . . . Total Part Build Rating . | . . . . Parts Repaired . | . . . . Time . | . . . . Parts Recycled . | . . . . Recycled Matter . | . . . . Retrieved Matter . | . . . . Retrieved Components . | . . . . Parts Scanalyzed . | . . . . Part Schematics Acquired . | . . . . Parts Damaged . | . . . . Bothacking | -11 -10 -10 -8 ------------ Run | Yrd Mat Sub Mat Used RIF Installer . | . . . . Robots Hacked . | . . . . Non-combat . | . . . . Combat . | . . . . Robot Hacks Applied . | . . . . Relay Couplers Released . | . . . . Fabnet Peak Effective % . | . . . . Robots Rewired . | . . . . Allies Hacked . | . . . . Hacks Repelled . | . . . . Allies | -11 -10 -10 -8 -------- Run | Yrd Mat Sub Mat Total Allies . | . . . . Largest Group . | . . . . Highest-Rated Group . | . . . . Highest-Rated Ally . | . . . . Total Orders . | . . . . Ally Attacks . | . . . . Total Damage . | . . . . Kills . | . . . . Allies Corrupted . | . . . . Allies Melted . | . . . . Intel | -11 -10 -10 -8 ------- Run | Yrd Mat Sub Mat Active Infowar (turns) 604 | . . 494 110 Optics 604 | . . 494 110 Robot Analysis Total . | . . . . Derelict Logs Recovered 2 | . . 2 . Drone Launches . | . . . . Drone Recoveries . | . . . . Exploration | -11 -10 -10 -8 ------------- Run | Yrd Mat Sub Mat Turns Passed 1693 | 78 135 1358 122 Spaces Moved 1064 | 57 82 859 66 Core 11 | 11 . . . Treads . | . . . . Legs 857 | 46 82 729 . Wheels 196 | . . 130 66 Hover . | . . . . Flight . | . . . . Fastest Speed 50 | 50 120 110 110 Average Speed 134 | 115 120 138 110 Slowest Speed 260 | 120 120 260 110 Overloaded Moves . | . . . . Propulsion Burnouts . | . . . . Robots Hopped . | . . . . Potential Cave-ins . | . . . . Cave-ins Triggered . | . . . . Exploration Rate (%) 20 | 4 11 57 10 Regions Visited 3 Branch Regions 1 Pre-discovered Areas 3 | . . 3 . Known Exits Taken . | . . . . Unknown Exits Taken 3 | 1 1 1 . Scrap Searched 5 | . . 5 . Spaces Dug . | . . . . Terrain Destroyed 29 | . . 20 9 Melee . | . . . . Projectile 8 | . . . 8 AOE 21 | . . 20 1 Terrain Rammed . | . . . . Walls Destroyed . | . . . . Machines Disabled . | . . . . Actions | -11 -10 -10 -8 --------- Run | Yrd Mat Sub Mat Total 1250 | 69 118 968 95 Wait 65 | . 33 28 4 Move 1061 | 56 81 858 66 Hop . | . . . . Pick Up 33 | 7 2 20 4 Fast Attach . | . . . . Attach 20 | 6 . 10 4 Detach 3 | . . 3 . Swap 13 | . 1 9 3 Drop 12 | . 1 9 2 Fire 43 | . . 31 12 Melee . | . . . . Ram . | . . . . Kick . | . . . . Crush . | . . . . Escape Stasis . | . . . . Rewire . | . . . . Trap . | . . . . Miscellaneous . | . . . . Route ------- -11/Scrapyard -10/Materials -10/Subcaves -8/Materials (discovered 1 exit: Sto) History --------- Turn | Location | Event 11 | -11/Scrapyard | Discovered new exit (range 14) 79 | -11/Scrapyard | Entered Materials 203 | -10/Materials | Discovered new exit (range 9) 214 | -10/Materials | Entered Subcaves 300 | -10/Subcaves | Build established: Mutant 580 | -10/Subcaves | Ambushed by swarm of Subdwellers 629 | -10/Subcaves | Lost 3 parts (1n2w) 665 | -10/Subcaves | Visited Clippyterm 668 | -10/Subcaves | Learned location of Extension (-4) 668 | -10/Subcaves | Learned Factory trap positions 713 | -10/Subcaves | Learned location of Zion (-6) 713 | -10/Subcaves | Met a Zionite searching for "candidates" 772 | -10/Subcaves | Shifting Twisted Machinery released Sub. Laser 883 | -10/Subcaves | Learned location of 1 exit from Materials 938 | -10/Subcaves | Build established: Scavenger-Mutant 1046 | -10/Subcaves | Disturbed a concealed Subdweller 1115 | -10/Subcaves | Shifting Twisted Machinery released Multitool 1125 | -10/Subcaves | Shifting Twisted Machinery released Flamer 1156 | -10/Subcaves | Shifting Twisted Machinery released Sub. Machine Gun 1169 | -10/Subcaves | Core integrity fell below 50% 1411 | -10/Subcaves | Build established: Mutant 1559 | -10/Subcaves | Discovered new exit (range 13) 1572 | -10/Subcaves | Entered Materials 1572 | -8/Materials | Evolved 4 slots: Propulsion x1, Utility x2, Weapon x1 1573 | -8/Materials | Identified exit to Storage 1694 | -8/Materials | Self-destructed Last Messages --------------- ALERT: Hostiles spotted, dispatching reinforcements to Terminal M007. Acquired Prototype Energy Gun. Identified Imp. EM Shotgun. Acquired Particle Charger. S-10 Pest destroyed. Chain reaction triggered in Lgt. Ion Engine. S-10 Pest destroyed. Destroyed Flight Unit. Power failure, Neutrino Core shutdown. Adv. Weight Redist. System broken. Overheating: Short circuit. Sub. Optics shoots sparks and powers down. S-10 Pest destroyed. Acquired 16 matter. Power failure, Neutrino Core shutdown. Acquired 4 matter. Dropped Broken Sub. Optics. Dropped Broken Adv. Weight Redist. System. Sub. Machine Gun shoots sparks and powers down. Map ----- +----------------------------------------------------+ | ????????????????????????????????????????????????? | | ????????????????????????????????????????????????? | | ????????????????????????????????????????????????? | | ????????????????????????????????????????????????? | | ????????????????????????????????????????????????? | | ????????????????????????????????????????????????? | | ????????????????????????????????????????????????? | | ????????????????????????????????????????????????? | | ????????????????????????????????????????????????? | | ????????????????????????????????????????????????? | | ????????????????????????????????????????????????? | | ????????????????????????????????????????????????? | | ????????????????????????????????????????????????? | | ????????????????????????????????????????????????? | | ????????????????????????????????????????????????? | | ????????????????????????????????????????????????? | | ????????????????????????????????????????????????? | | ????????????????????????????????????????????????? | | ????????????????????????????????????????????????? | | ?????????????????????###????????????????????????? | | ?????????????????????# #????????????????????????? | | ?????????????????????# #????????????????????????? | | ?????????????????????# #????????????????????????? | | ?????????????????????# #????????????????????????? | | ???????????????????###;##########/########??????? | | ???????????????????# @ g ????? | | ???????????????????# =! ????? | | ????????????? ##???# [ ????? | | ?????????????? ???# =;##############?????????? | | ?????????????""""??# ;##########??????????????? | | ???????????? """"??# # #??????????????? | | ???????????? """""?# # """ #??????????????? | | ???????????T """""?# # """""#??????????????? | | ???????????" """"" # + """""#??????????????? | | ??????????#" """"" # # """""#??????????????? | | ??????????#" """"" + # """ #??????????????? | | ??????????# #o # #??????????????? | | ######????########## # = #??????????????? | | # =[!##########"#### ###########??????????????? | | # =[ # #????????????????????????? | | # [[ # #????????????????????????? | | # # #????????????????????????? | | # + ##########+####????????????????????????? | | #* # #??????? ??????????????????????????? | | # # #?????# ]]! T ????????????????????????? | | # # #?????# ]] #???????????????????????? | | # #####?????# ]] #???????????????????????? | | ######?????????# #???????????????????????? | | ???????????????#[ """ #???????????????????????? | | ???????????????# """ #???????????????????????? | +----------------------------------------------------+ Best States ------------- Heat Dissipation 31 Energy Generation 19 Energy Capacity 315 Matter Stores 300 Matter Capacity 300 Sight Range 21 Terrain Scan Density 10 Additional Mass Support 9 Armor Coverage 800 Evasion (%) 55 Particle Charging 15 Item Schematics ----------------- None Robot Schematics ------------------ None Fabricated ------------ Nothing Repaired ---------- Nothing Alien Tech Used ----------------- None Achievements -------------- None Challenges ------------ None Game ------ Seed TerrabombSuperdenseNanovents Manual? 0 Play Time 00:20:17 Cumulative 43.8 hours Start 2025.08.31 @ 00:54:36 End 2025.08.31 @ 01:42:59 Sessions 3 Manual Loads 0 Difficulty Rogue Special Mode None Game No. 27 Rogue 7 Adventurer 1 Explorer 19 Win Type - Total 5 Types 3/0/0/2/0/0/0/0/0/0 Lore% 11 Gallery% 33 Achievement% 35 Wizard Run 0 Options --------- Layout 1 ASCII 0 Keyboard 0 Movement Mouse Keybinds 0 Fullscreen 1 Font 24/Smallcaps Map View 50x35 Zoom Use 0% Tactical HUD 0 Map Filters NONE Filters NONE Steam 1 RUN: da76a847-eba2-4883-9124-dc49039ef828